[Event "African Championship"]
[Site "followchess.com"]
[Date "2021.05.27"]
[Round "9"]
[White "Okeke Issac"]
[Black "Nyambalo, Joseph Xavier"]
[Result "1-0"]
[ECO "B92"]
[WhiteElo "2097"]
[BlackElo "2032"]
[PlyCount "149"]
[EventDate "2021.??.??"]
[TimeControl "7200+30"]
[WhiteClock "0:41:57"]
[BlackClock "0:04:32"]

1. e4 {[%emt 0:33:08]} c5 {[%emt 0:29:34]} 2. Nf3 {[%emt 0:00:16]} d6 {[%emt 0:
00:03]} 3. d4 {[%emt 0:00:03]} cxd4 {[%emt 0:00:03]} 4. Nxd4 {[%emt 0:00:04]}
Nf6 {[%emt 0:00:04]} 5. Nc3 {[%emt 0:00:09]} a6 {[%emt 0:00:01]} 6. Be2 {
[%emt 0:00:12]} e5 {[%emt 0:01:45]} 7. Nb3 {[%emt 0:00:04]} Be6 {[%emt 0:00:30]
} 8. Be3 {[%emt 0:00:12]} Nbd7 {[%emt 0:04:14]} 9. g4 {[%emt 0:01:01]} Nb6 {
[%emt 0:01:01]} 10. g5 {[%emt 0:02:39]} Nfd7 {[%emt 0:00:12]} 11. Qd2 {[%emt 0:
04:02]} Rc8 {[%emt 0:03:06]} 12. O-O-O {[%emt 0:02:42]} Qc7 {[%emt 0:07:34]}
13. Kb1 {[%emt 0:04:03]} Nc4 {[%emt 0:07:11]} 14. Bxc4 {[%emt 0:00:15]} Qxc4 {
[%emt 0:00:10]} 15. f3 {[%emt 0:06:57]} b5 {[%emt 0:02:14]} 16. Qf2 {[%emt 0:
04:22]} b4 {[%emt 0:01:32]} 17. Nd5 {[%emt 0:01:20]} Bxd5 {[%emt 0:03:51]} 18.
Rxd5 {[%emt 0:03:43]} Be7 {[%emt 0:03:14]} 19. h4 {[%emt 0:08:04]} O-O {
[%emt 0:01:41]} 20. Qg2 {[%emt 0:32:38]} f5 {[%emt 0:02:26]} 21. gxf6 {[%emt 0:
03:08]} Nxf6 {[%emt 0:00:20]} 22. Rg1 {[%emt 0:01:23]} Rf7 {[%emt 0:01:06]} 23.
Rdd1 {[%emt 0:02:38]} d5 {[%emt 0:02:54]} 24. Bh6 {[%emt 0:05:48]} Bf8 {
[%emt 0:01:05]} 25. exd5 {[%emt 0:01:14]} Nxd5 {[%emt 0:00:30]} 26. Bg5 {
[%emt 0:03:46]} Nf4 {[%emt 0:02:58]} 27. Qd2 {[%emt 0:04:38]} Qb5 {[%emt 0:02:
06]} 28. Rg4 {[%emt 0:02:23]} h5 {[%emt 0:01:10]} 29. Rgg1 {[%emt 0:01:01]} a5
{[%emt 0:04:52]} 30. Nd4 {[%emt 0:01:34]} Qc4 {[%emt 0:02:06]} 31. Bxf4 {
[%emt 0:00:52]} Rxf4 {[%emt 0:00:06]} 32. Ne2 {[%emt 0:00:53]} Rxf3 {[%emt 0:
01:00]} 33. Ng3 {[%emt 0:00:29]} Qf7 {[%emt 0:01:19]} 34. Ne4 {[%emt 0:00:30]}
Be7 {[%emt 0:00:48]} 35. Qd7 {[%emt 0:00:41]} Rd8 {[%emt 0:01:15]} 36. Qxd8+ {
[%emt 0:00:21]} Bxd8 {[%emt 0:07:20]} 37. Rxd8+ Qf8 {[%emt 0:00:01]} 38. Rxf8+
Rxf8 {[%emt 0:00:01]} 39. Ng5 {[%emt 0:00:48]} g6 {[%emt 0:01:12]} 40. c4 bxc3
{[%emt 0:00:00]} 41. bxc3 {[%emt 0:00:00]} Rf4 {[%emt 0:00:00]} 42. Rh1 {
[%emt 0:00:00]} Rg4 {[%emt 0:00:00]} 43. Nf3 {[%emt 0:00:00]} e4 {[%emt 0:00:
00]} 44. Ne5 {[%emt 0:00:00]} Rg3 45. Rc1 {[%emt 0:00:00]} e3 {[%emt 0:00:00]}
46. Kc2 {[%emt 0:00:00]} Kg7 {[%emt 0:00:00]} 47. Kd3 {[%emt 0:00:00]} Kf6 {
[%emt 0:00:00]} 48. Nc4 {[%emt 0:00:00]} e2+ {[%emt 0:00:00]} 49. Kxe2 {
[%emt 0:00:00]} Rg4 {[%emt 0:00:00]} 50. Nd2 {[%emt 0:00:00]} Rxh4 {[%emt 0:00:
00]} 51. c4 {[%emt 0:00:00]} Ke6 {[%emt 0:00:00]} 52. Rg1 {[%emt 0:00:00]} Kf5
{[%emt 0:00:00]} 53. Rg5+ {[%emt 0:00:55]} Kxg5 {[%emt 0:00:48]} 54. Nf3+ {
[%emt 0:00:05]} Kf4 {[%emt 0:00:01]} 55. Nxh4 {[%emt 0:00:34]} g5 {[%emt 0:00:
09]} 56. c5 {[%emt 0:05:52]} Ke5 {[%emt 0:00:21]} 57. Nf3+ {[%emt 0:00:09]} Kd5
{[%emt 0:00:00]} 58. Nxg5 {[%emt 0:00:24]} Kxc5 {[%emt 0:00:01]} 59. Kd3 {
[%emt 0:00:34]} Kb4 {[%emt 0:01:26]} 60. Kc2 {[%emt 0:00:30]} a4 {[%emt 0:00:
07]} 61. Nf3 {[%emt 0:01:24]} Kc4 {[%emt 0:01:37]} 62. a3 {[%emt 0:00:20]} Kd5
{[%emt 0:02:39]} 63. Kd3 {[%emt 0:00:08]} Kc5 {[%emt 0:01:21]} 64. Kc3 {
[%emt 0:00:18]} Kd5 {[%emt 0:00:52]} 65. Kd3 {[%emt 0:00:30]} Kc5 {[%emt 0:01:
32]} 66. Kc3 {[%emt 0:00:13]} Kd5 {[%emt 0:00:06]} 67. Kb4 {[%emt 0:00:51]} Ke4
{[%emt 0:00:15]} 68. Nh4 {[%emt 0:00:18]} Kf4 {[%emt 0:00:12]} 69. Kxa4 {
[%emt 0:00:13]} Kg4 {[%emt 0:00:18]} 70. Kb5 {[%emt 0:00:26]} Kxh4 {[%emt 0:00:
07]} 71. a4 {[%emt 0:00:05]} Kg3 {[%emt 0:00:32]} 72. a5 {[%emt 0:00:04]} h4 {
[%emt 0:00:01]} 73. a6 {[%emt 0:00:05]} h3 {[%emt 0:00:01]} 74. a7 {[%emt 0:00:
49]} h2 {[%emt 0:00:02]} 75. a8=Q {[%emt 0:00:10]} 1-0

[Event "African Championship"]
[Site "followchess.com"]
[Date "2021.05.27"]
[Round "9"]
[White "Paiva, Donaldo"]
[Black "Oragwu, Chukwunonso"]
[Result "1/2-1/2"]
[ECO "A10"]
[WhiteElo "2230"]
[BlackElo "2241"]
[PlyCount "90"]
[EventDate "2021.??.??"]
[TimeControl "7200+30"]
[WhiteClock "0:26:53"]
[BlackClock "0:47:51"]

1. c4 {[%emt 0:31:47]} g6 {[%emt 0:29:53]} 2. g3 {[%emt 0:00:06]} Bg7 {[%emt 0:
00:07]} 3. Bg2 {[%emt 0:00:05]} Nc6 {[%emt 0:00:14]} 4. Nc3 {[%emt 0:00:12]} d6
{[%emt 0:00:47]} 5. e4 {[%emt 0:00:23]} Nf6 {[%emt 0:05:26]} 6. Nge2 {[%emt 0:
00:08]} O-O {[%emt 0:00:34]} 7. O-O {[%emt 0:02:56]} e5 {[%emt 0:01:19]} 8. h3
{[%emt 0:00:04]} a6 {[%emt 0:01:36]} 9. d3 {[%emt 0:01:49]} Rb8 {[%emt 0:02:44]
} 10. a4 {[%emt 0:00:08]} a5 {[%emt 0:02:17]} 11. Be3 {[%emt 0:00:11]} Nb4 {
[%emt 0:02:24]} 12. d4 {[%emt 0:01:19]} Nd7 13. Kh2 {[%emt 0:10:09]} c6 {
[%emt 0:02:45]} 14. Qd2 {[%emt 0:03:50]} Qe7 {[%emt 0:03:22]} 15. Rad1 {
[%emt 0:00:52]} Re8 {[%emt 0:01:23]} 16. Nc1 {[%emt 0:06:38]} Nf8 {[%emt 0:02:
41]} 17. Nb3 {[%emt 0:03:16]} b6 {[%emt 0:02:46]} 18. Nc1 {[%emt 0:03:53]} Ba6
{[%emt 0:02:24]} 19. b3 {[%emt 0:03:04]} Red8 {[%emt 0:04:41]} 20. N1e2 {
[%emt 0:02:10]} Ne6 {[%emt 0:03:12]} 21. Rb1 {[%emt 0:14:54]} Nc7 {[%emt 0:05:
38]} 22. Rfd1 {[%emt 0:09:05]} d5 {[%emt 0:08:15]} 23. cxd5 {[%emt 0:04:08]}
cxd5 {[%emt 0:00:33]} 24. exd5 {[%emt 0:05:52]} Bxe2 {[%emt 0:11:07]} 25. Qxe2
{[%emt 0:03:27]} Ncxd5 {[%emt 0:05:40]} 26. Nxd5 {[%emt 0:00:07]} Nxd5 {
[%emt 0:00:08]} 27. Bxd5 {[%emt 0:00:11]} Rxd5 {[%emt 0:00:06]} 28. dxe5 {
[%emt 0:00:10]} Rxe5 {[%emt 0:02:57]} 29. Qd3 {[%emt 0:01:27]} Re6 {[%emt 0:02:
00]} 30. Qb5 {[%emt 0:02:25]} h5 {[%emt 0:06:01]} 31. h4 {[%emt 0:00:05]} Be5 {
[%emt 0:03:26]} 32. Kg2 {[%emt 0:00:09]} Re8 {[%emt 0:09:00]} 33. Bg5 {[%emt 0:
03:18]} Qb7+ {[%emt 0:03:05]} 34. Qd5 {[%emt 0:00:06]} Qb8 {[%emt 0:00:36]} 35.
Rd3 {[%emt 0:01:18]} Rd6 {[%emt 0:01:05]} 36. Qf3 {[%emt 0:00:28]} Rxd3 {
[%emt 0:01:11]} 37. Qxd3 {[%emt 0:00:12]} Qb7+ {[%emt 0:02:42]} 38. Qf3 {
[%emt 0:00:05]} Qxf3+ {[%emt 0:01:43]} 39. Kxf3 {[%emt 0:00:06]} Bd4 {[%emt 0:
00:57]} 40. Rd1 {[%emt 0:00:00]} Bc5 {[%emt 0:00:00]} 41. Bf6 {[%emt 0:00:00]}
Kf8 {[%emt 0:00:00]} 42. Rd7 {[%emt 0:00:00]} Re6 {[%emt 0:00:00]} 43. Rd8+ {
[%emt 0:00:00]} Re8 {[%emt 0:00:00]} 44. Bg7+ {[%emt 0:00:00]} Ke7 {[%emt 0:00:
00]} 45. Bf6+ {[%emt 0:00:00]} Kf8 {[%emt 0:00:00] -error} 1/2-1/2

[Event "African Championship"]
[Site "followchess.com"]
[Date "2021.05.27"]
[Round "9"]
[White "Wageih, Kareim"]
[Black "Mhango, Banele"]
[Result "1/2-1/2"]
[ECO "A48"]
[WhiteElo "2425"]
[BlackElo "2117"]
[PlyCount "271"]
[EventDate "2021.??.??"]
[TimeControl "7200+30"]
[WhiteClock "0:36:27"]
[BlackClock "0:16:44"]

1. d4 {[%emt 0:34:22]} Nf6 {[%emt 0:31:30]} 2. Nf3 {[%emt 0:01:26]} g6 {
[%emt 0:00:16]} 3. Nbd2 {[%emt 0:00:23]} d5 {[%emt 0:01:33]} 4. e3 {[%emt 0:00:
07]} Bg7 {[%emt 0:00:28]} 5. b4 {[%emt 0:00:04]} O-O {[%emt 0:02:45]} 6. c4 {
[%emt 0:00:17]} c6 {[%emt 0:03:30]} 7. Bb2 {[%emt 0:03:15]} a5 {[%emt 0:04:41]}
8. b5 {[%emt 0:00:33]} a4 {[%emt 0:03:46]} 9. Ba3 {[%emt 0:02:37]} Re8 {
[%emt 0:03:30]} 10. Be2 {[%emt 0:02:51]} Nbd7 {[%emt 0:02:04]} 11. cxd5 {
[%emt 0:12:55]} cxd5 {[%emt 0:06:34]} 12. O-O {[%emt 0:00:59]} e5 {[%emt 0:02:
50]} 13. Nxe5 {[%emt 0:04:28]} Nxe5 {[%emt 0:00:06]} 14. dxe5 {[%emt 0:00:02]}
Rxe5 {[%emt 0:00:12]} 15. Nf3 {[%emt 0:05:49]} Re8 {[%emt 0:00:14]} 16. Nd4 {
[%emt 0:00:55]} Ne4 {[%emt 0:00:34]} 17. Rc1 {[%emt 0:07:52]} Be5 {[%emt 0:13:
19]} 18. Qd3 {[%emt 0:14:59]} h5 {[%emt 0:14:09]} 19. f4 {[%emt 0:09:27]} Bg7 {
[%emt 0:02:37]} 20. Bf3 {[%emt 0:01:12]} Qb6 {[%emt 0:02:46]} 21. Rc2 {[%emt 0:
05:56]} Bd7 {[%emt 0:01:47]} 22. Rfc1 {[%emt 0:07:03]} Bxd4 {[%emt 0:10:22]}
23. Qxd4 {[%emt 0:00:16]} Qxd4 {[%emt 0:00:05]} 24. exd4 {[%emt 0:00:05]} Bxb5
{[%emt 0:00:04]} 25. Rc7 {[%emt 0:01:07]} Bc6 {[%emt 0:01:42]} 26. f5 {[%emt 0:
01:32]} Nd2 {[%emt 0:01:53]} 27. Kf2 {[%emt 0:02:50]} Ne4+ {[%emt 0:04:46]} 28.
Kg1 {[%emt 0:00:04]} Nd2 {[%emt 0:06:33]} 29. Kf2 {[%emt 0:00:01]} Nc4 {
[%emt 0:00:12]} 30. Rxc4 {[%emt 0:01:50]} dxc4 {[%emt 0:00:05]} 31. d5 {
[%emt 0:00:36]} Bb5 {[%emt 0:00:13]} 32. fxg6 {[%emt 0:02:13]} fxg6 {[%emt 0:
00:05]} 33. d6 {[%emt 0:06:07]} Bc6 {[%emt 0:00:54]} 34. d7 {[%emt 0:01:46]}
Red8 {[%emt 0:00:36]} 35. Bxc6 {[%emt 0:00:18]} bxc6 {[%emt 0:00:03]} 36. Be7 {
[%emt 0:00:15]} Kf7 {[%emt 0:00:09]} 37. Bxd8 {[%emt 0:00:04]} Rxd8 {[%emt 0:
00:02]} 38. Ke3 {[%emt 0:00:25]} Ke6 {[%emt 0:02:08]} 39. Rxc6+ {[%emt 0:00:13]
} Kd5 {[%emt 0:00:05]} 40. Rc7 {[%emt 0:00:00]} a3 {[%emt 0:00:00]} 41. h4 {
[%emt 0:00:00]} Ke5 {[%emt 0:00:00]} 42. Kd2 {[%emt 0:00:00]} Ke6 {[%emt 0:00:
00]} 43. Kc3 {[%emt 0:00:00]} Ke7 {[%emt 0:00:00]} 44. Kxc4 {[%emt 0:00:00]}
Rf8 {[%emt 0:00:00]} 45. Kb3 {[%emt 0:00:00]} Rf4 {[%emt 0:00:00]} 46. g3 {
[%emt 0:01:09]} Rg4 {[%emt 0:00:00]} 47. Rc3 {[%emt 0:00:27]} Kxd7 {[%emt 0:00:
00]} 48. Kxa3 {[%emt 0:00:04]} g5 {[%emt 0:00:00]} 49. hxg5 {[%emt 0:00:18]}
Rxg5 {[%emt 0:00:00]} 50. Kb4 {[%emt 0:01:11]} Rg4+ {[%emt 0:00:00]} 51. Kb5 {
[%emt 0:00:18]} h4 {[%emt 0:00:00]} 52. gxh4 {[%emt 0:00:13]} Rxh4 {[%emt 0:00:
00]} 53. a4 {[%emt 0:00:17]} Rh8 {[%emt 0:00:00]} 54. Kb6 {[%emt 0:02:42]} Rb8+
{[%emt 0:00:00]} 55. Ka7 {[%emt 0:00:26]} Rc8 {[%emt 0:00:00]} 56. Rh3 {
[%emt 0:01:18]} Rc7+ {[%emt 0:00:00]} 57. Kb6 {[%emt 0:00:23]} Rc6+ {[%emt 0:
00:00]} 58. Kb5 {[%emt 0:00:11]} Rg6 {[%emt 0:00:00]} 59. Rc3 {[%emt 0:00:23]}
Rg8 {[%emt 0:00:00]} 60. a5 {[%emt 0:00:15]} Rc8 {[%emt 0:00:00]} 61. Rh3 {
[%emt 0:00:21]} Kc7 {[%emt 0:00:00]} 62. a6 {[%emt 0:01:31]} Kb8 {[%emt 0:00:
00]} 63. Kb6 {[%emt 0:00:09]} Rg8 {[%emt 0:00:00]} 64. Rh6 {[%emt 0:00:10]} Ka8
{[%emt 0:00:00]} 65. Rf6 {[%emt 0:00:31]} Rb8+ 66. Kc7 Ka7 {[%emt 0:00:33]} 67.
Rf7 {[%emt 0:01:03]} Rb6 {[%emt 0:01:15]} 68. Rf1 {[%emt 0:00:57]} Rxa6 {
[%emt 0:00:25]} 69. Rb1 {[%emt 0:00:27]} Ra2 {[%emt 0:00:15]} 70. Rc1 {[%emt 0:
00:30]} Ka6 {[%emt 0:00:18]} 71. Rc5 {[%emt 0:00:10]} Rb2 {[%emt 0:00:30]} 72.
Rc6+ {[%emt 0:01:37]} Ka5 {[%emt 0:00:15]} 73. Rc3 {[%emt 0:00:16]} Kb4 {
[%emt 0:00:44]} 74. Rc6 {[%emt 0:00:17]} Rb3 {[%emt 0:04:59]} 75. Kb6 {[%emt 0:
00:28]} Rh3 {[%emt 0:00:42]} 76. Rg6 {[%emt 0:00:07]} Rh4 {[%emt 0:00:12]} 77.
Kc6 {[%emt 0:00:12]} Rc4+ {[%emt 0:00:09]} 78. Kd5 {[%emt 0:00:10]} Rc5+ {
[%emt 0:00:07]} 79. Kd4 {[%emt 0:00:16]} Rc4+ {[%emt 0:02:07]} 80. Kd3 {
[%emt 0:00:13]} Rc3+ {[%emt 0:00:05]} 81. Kd2 {[%emt 0:00:09]} Rc5 {[%emt 0:00:
09]} 82. Rg8 {[%emt 0:00:15]} Rd5+ {[%emt 0:00:07]} 83. Kc2 {[%emt 0:00:06]}
Rc5+ {[%emt 0:00:05]} 84. Kb2 {[%emt 0:00:07]} Rb5 {[%emt 0:00:05]} 85. Rg4+ {
[%emt 0:00:24]} Ka5+ {[%emt 0:00:06]} 86. Kc3 {[%emt 0:00:32]} Rh5 {[%emt 0:02:
47]} 87. Kc4 {[%emt 0:00:43]} Rb5 {[%emt 0:00:30]} 88. Rg8 {[%emt 0:00:18]}
Rb4+ {[%emt 0:00:07]} 89. Kc3 {[%emt 0:00:34]} Rb6 {[%emt 0:00:09]} 90. Kc4 {
[%emt 0:00:59]} Rc6+ {[%emt 0:00:05]} 91. Kd5 {[%emt 0:00:15]} Ra6 {[%emt 0:00:
18]} 92. Kc5 {[%emt 0:00:29]} Ra7 {[%emt 0:00:17]} 93. Rc8 {[%emt 0:00:19]} Ka4
{[%emt 0:00:08]} 94. Kc4 {[%emt 0:00:23]} Ka5 {[%emt 0:00:05]} 95. Kc3 {
[%emt 0:01:03]} Kb6 {[%emt 0:00:08]} 96. Kb4 {[%emt 0:00:14]} Rg7 {[%emt 0:00:
09]} 97. Rc4 {[%emt 0:00:13]} Rg5 {[%emt 0:00:06]} 98. Rh4 {[%emt 0:00:12]} Rg6
{[%emt 0:00:08]} 99. Kc4 {[%emt 0:00:11]} Rc6+ {[%emt 0:00:06]} 100. Kd5 {
[%emt 0:00:20]} Rc5+ {[%emt 0:00:05]} 101. Kd6 {[%emt 0:00:16]} Rc6+ {[%emt 0:
00:05]} 102. Kd7 {[%emt 0:00:12]} Rc7+ {[%emt 0:00:03]} 103. Kd8 {[%emt 0:00:
20]} Rg7 {[%emt 0:00:07]} 104. Rh6+ {[%emt 0:00:22]} Kc5 {[%emt 0:00:06]} 105.
Kc8 {[%emt 0:00:14]} Kd5 {[%emt 0:00:07]} 106. Kd8 {[%emt 0:00:13]} Kc5 {
[%emt 0:00:06]} 107. Ke8 {[%emt 0:00:06]} Ra7 {[%emt 0:00:05]} 108. Rh5+ {
[%emt 0:00:41]} Kd6 {[%emt 0:00:08]} 109. Rh6+ {[%emt 0:00:06]} Ke5 {[%emt 0:
00:04]} 110. Kd8 {[%emt 0:00:16]} Ra8+ {[%emt 0:00:10]} 111. Kc7 {[%emt 0:00:
09]} Ra7+ {[%emt 0:00:04]} 112. Kb6 {[%emt 0:00:09]} Re7 {[%emt 0:00:06]} 113.
Kc5 {[%emt 0:00:06]} Rc7+ {[%emt 0:00:04]} 114. Kb6 {[%emt 0:00:16]} Re7 {
[%emt 0:00:05]} 115. Rh5+ {[%emt 0:00:15]} Kf6 {[%emt 0:00:07]} 116. Kc6 {
[%emt 0:00:15]} Kg6 {[%emt 0:00:05]} 117. Rh1 {[%emt 0:00:17]} Re6+ {[%emt 0:
00:12]} 118. Kd5 {[%emt 0:00:07]} Rf6 {[%emt 0:00:04]} 119. Ke5 {[%emt 0:00:15]
} Rf5+ {[%emt 0:00:12]} 120. Ke6 {[%emt 0:00:06]} Rf6+ {[%emt 0:00:05]} 121.
Ke7 {[%emt 0:00:07]} Rf7+ {[%emt 0:00:05]} 122. Ke8 {[%emt 0:00:08]} Ra7 {
[%emt 0:00:06]} 123. Rg1+ {[%emt 0:00:09]} Kf6 {[%emt 0:00:05]} 124. Rf1+ {
[%emt 0:00:06]} Ke6 {[%emt 0:00:04]} 125. Re1+ {[%emt 0:00:16]} Kf6 {[%emt 0:
00:06]} 126. Kd8 {[%emt 0:00:15]} Kg6 {[%emt 0:00:08]} 127. Rf1 {[%emt 0:00:02]
} Rb7 {[%emt 0:00:07]} 128. Kc8 {[%emt 0:00:10]} Rh7 {[%emt 0:00:06]} 129. Kd8
{[%emt 0:00:12]} Ra7 {[%emt 0:00:06]} 130. Rf2 {[%emt 0:00:10]} Kg7 {[%emt 0:
00:09]} 131. Kc8 {[%emt 0:00:34]} Kg6 {[%emt 0:00:10]} 132. Kb8 {[%emt 0:00:05]
} Rh7 {[%emt 0:00:06]} 133. Rg2+ {[%emt 0:00:03]} Kf6 {[%emt 0:00:07]} 134.
Rf2+ {[%emt 0:00:07]} Kg6 {[%emt 0:00:04]} 135. Kc8 {[%emt 0:00:06]} Ra7 {
[%emt 0:00:05]} 136. Kd8 {[%emt 0:00:05] -error} 1/2-1/2